Workbook

Sheet פתרון שאלות אמריקאיות 1-15
A2: מבחן מה-30.7.19 2019ב
A4: אופיר מאגדי 0507484348
A5: מורה פרטי ומרצה למימון, שוק ההון ושמאות מקרקעין.
A6: רוצים להכיר אותי? כנסו לאתר | E6: www.NPV.co.il
A8: רוצים לקרוא עוד? כמסו לאתר: | E8: www.IRR.co.il
A10: מנכ"ל חברת Primary Capital | E10: www.prim.co.il
I20: תקופת משיכות | O20: תקופת הפקדות
I22: ריבית שנתית | J22: 4.91% | O22: =5*12 -> 60 | P22: N
I23: ריבית חודשית: | J23: =(1+J22)^(1/12)-1 -> 0.40%
I24: חודשים | J24: 24 | P24: =PMT(J23,O22,,J26) -> ₪ -2,372.25
I25: תקבול חודשי | J25: 7,000.00
I26: PV | J26: =PV(J23,J24,-J25,,1) -> ₪ 160,518.75
I50: הלוואה | J50: 50000
I51: ריבית נקובה שנתית | J51: 12% | M51: .....10 | N51: 1 | O51: 0
I52: ריבית חודשית | J52: =J51/12 -> 1.00% | M52: =FV(J52,J53,,-O52) -> ₪ 55,231.11 | O52: =J50 -> 50000
I53: חודשים | J53: 10 | M53: =J55 -> 1,200 | O53: =-J54 -> -1,000
I54: ע. פתיחת תיק | J54: 1,000 | M54: =M52+M53 -> 56,431 | N54: 0 | O54: =O52+O53 -> 49,000
I55: ע.סגירת תיק | J55: 1,200
I56: סכום ההחזר (קרן+ריבית) | O56: =RATE(J53,,-O54,M54) -> 1.42%
I58: ריבית גלומה ל-10 חודשים: | J58: =(1+O56)^10-1 -> 15.17%
I60: הריבית השנתית האפקטיבית: | J60: =(1+O56)^12-1 -> 18.46%
I122: אג"ח סדרה ב | K122: אג"ח סדרה א
I123: ערך נקוב | J123: 200,000 | K123: ערך נקוב | L123: 100,000
I124: ריבית נקובה שנתית | J124: 10% | K124: קופון | L124: 5,000
I125: מרווח בין קופונים | J125: 2 | K125: מרווח בין קופונים | L125: 1
I126: מספר קופונים | J126: =5*2 -> 10 | K126: מספר קופונים | L126: 7
I127: מחיר בהנפקה | J127: 250,000
I128: הקופון | J128: =J123*J124/J125 -> 10,000 | K128: נחשב מחיר בהנפקה | L128: =PV(J130,L126,L124,L123) -> (103,389.47)
I129: נחשב את התשואה החצי-שנתית לפדיון | J129: =RATE(J126,J128,-J127,J123) -> 2.19%
I130: תשואה שנתית לפדיון | J130: =(1+J129)^(2)-1 -> 4.43%
L159: 4 | M159: 3 | N159: 2 | O159: 1
K160: 1.00% | L160: =RATE(1,,-K165,I165) -> 4.13% | M160: =(1+M161)^12-1 -> 4.28% | N160: =RATE(1,,-N165,M165) -> 4.17% | O160: =EFFECT(4%,4) -> 4.06%
K161: =K160/2 -> 0.50% | M161: 0.35%
I162: 2 | J162: 1 | K162: 0 | M162: 1 | N162: 0
I163: =FV(K161,2,,-K163) -> ₪ 101,002.50 | K163: =N163 -> 100000 | M163: =N163 -> 100000 | N163: 100000
K164: =-0.03*K163 -> -3000 | N164: =-0.04*N163 -> -4000
I165: =I163+I164 -> 101002.5 | J165: 0 | K165: =K163+K164 -> 97000 | M165: =M163 -> 100000 | N165: =N163+N164 -> 96000
I192: 0
I193: 1 | J193: -50,000
I194: 2
I195: 3
I196: 4 | J196: X
I197: 5 | J197: 200,000
I199: ריבית שנתית | J199: 8%
I201: ה - 50,000 בזמן 1 שווה בזמן 5: | J201: =FV(J199,4,,J193) -> ₪ 68,024.45 | K201: יש 4 תקופות זמן
I202: ולכן חסר לסכום הנכס: | J202: =J197-J201 -> 131,975.55 | K202: זהו הערך העתידי החסר
I203: מיהו הסכום החד פעמי הנוכחי בזמן 4 שיביא ערך עתידי זה?
I204: הערה: יש 1 תקופות זמן בין זמן 4 לזמן 5 - | J204: =PV(J199,1,,J202) -> ₪ -122,199.59
J230: B | K230: A
J231: -300 | K231: -200 | L231: השקעה
J232: 322 | K232: 220 | L232: תקבול
J234: =NPV(M234,J232)-300 -> -1.298701299 | K234: =NPV(M234,K232)-200 -> 4.081632653 | L234: NPV | M234: 7.80%
K235: =IRR(K231:K232) -> 10% | L235: IRR
T249: רגיל | Z249: שפיצר
S250: נתונים: | Z250: נתונים:
S251: הלוואה | T251: =AE285 -> 886,520 | U251: PV | Z251: הלוואה | AA251: 2,000,000 | AB251: PV | AD251: 15.39%
S252: מספר תקופות | T252: 18 | U252: n | Z252: חודשים | AA252: =4*12 -> 48 | AB252: n | AD252: 12
S253: ריבית | T253: =(1+W253)^(1/12)-1 -> 1.20% | U253: r | W253: 15.39% | X253: Rשנתי | Z253: ריבית | AA253: =(1+AD251)^(1/AD252)-1 -> 1.20% | AB253: r | AD253: =2.5*12 -> 30
T254: =T251/T252 -> 49251.13794 | U254: קרן קבועה | AA254: =PMT(AA253,AA252,-AA251,,) -> ₪ 55,055.58 | AB254: PMT
S255: מספר תקבול | T255: יתרת הקרן בתחילת תקופה | U255: תשלום ע"ח קרן | V255: תשלום ע"ח ריבית | W255: סך הכל תשלום | X255: יתרת הקרן בסוף התקופה | Z255: מספר תקבול | AA255: יתרת הקרן בתחילת תקופה | AB255: תשלום ע"ח קרן | AC255: תשלום ע"ח ריבית | AD255: סך הכל תשלום | AE255: יתרת הקרן בסוף התקופה
S256: 1 | T256: =T251 -> ₪ 886,520.48 | U256: =$T$254 -> ₪ 49,251.14 | V256: =$T$253*T256 -> ₪ 10,638.59 | W256: =V256+U256 -> ₪ 59,889.73 | X256: =T256-U256 -> ₪ 837,269.34 | Y256: 31 | Z256: 1 | AA256: =AA251 -> ₪ 2,000,000.00 | AB256: =AD256-AC256 -> ₪ 31,054.79 | AC256: =$AA$253*AA256 -> ₪ 24,000.79 | AD256: =$AA$254 -> ₪ 55,055.58 | AE256: =AA256-AB256 -> ₪ 1,968,945.21
S257: 2 | T257: =X256 -> ₪ 837,269.34 | U257: =$T$254 -> ₪ 49,251.14 | V257: =$T$253*T257 -> ₪ 10,047.56 | W257: =V257+U257 -> ₪ 59,298.70 | X257: =T257-U257 -> ₪ 788,018.21 | Y257: 32 | Z257: 2 | AA257: =AE256 -> ₪ 1,968,945.21 | AB257: =AD257-AC257 -> ₪ 31,427.46 | AC257: =$AA$253*AA257 -> ₪ 23,628.12 | AD257: =$AA$254 -> ₪ 55,055.58 | AE257: =AA257-AB257 -> ₪ 1,937,517.74
S258: 3 | T258: =X257 -> ₪ 788,018.21 | U258: ₪ 49,251.14 | V258: ₪ 9,456.53 | W258: ₪ 58,707.67 | X258: ₪ 738,767.07 | Y258: 33 | Z258: 3 | AA258: =AE257 -> ₪ 1,937,517.74 | AB258: ₪ 31,804.60 | AC258: ₪ 23,250.97 | AD258: ₪ 55,055.58 | AE258: ₪ 1,905,713.14
S259: 4 | T259: ₪ 738,767.07 | U259: ₪ 49,251.14 | V259: ₪ 8,865.50 | W259: ₪ 58,116.63 | X259: ₪ 689,515.93 | Y259: 34 | Z259: 4 | AA259: ₪ 1,905,713.14 | AB259: ₪ 32,186.27 | AC259: ₪ 22,869.31 | AD259: ₪ 55,055.58 | AE259: ₪ 1,873,526.87
S260: 5 | T260: ₪ 689,515.93 | U260: ₪ 49,251.14 | V260: ₪ 8,274.46 | W260: ₪ 57,525.60 | X260: ₪ 640,264.79 | Y260: 35 | Z260: 5 | AA260: ₪ 1,873,526.87 | AB260: ₪ 32,572.52 | AC260: ₪ 22,483.06 | AD260: ₪ 55,055.58 | AE260: ₪ 1,840,954.35
S261: 6 | T261: ₪ 640,264.79 | U261: ₪ 49,251.14 | V261: ₪ 7,683.43 | W261: ₪ 56,934.57 | X261: ₪ 591,013.66 | Y261: 36 | Z261: 6 | AA261: ₪ 1,840,954.35 | AB261: ₪ 32,963.40 | AC261: ₪ 22,092.18 | AD261: ₪ 55,055.58 | AE261: ₪ 1,807,990.94
S262: 7 | T262: ₪ 591,013.66 | U262: ₪ 49,251.14 | V262: ₪ 7,092.40 | W262: ₪ 56,343.53 | X262: ₪ 541,762.52 | Y262: 37 | Z262: 7 | AA262: ₪ 1,807,990.94 | AB262: ₪ 33,358.98 | AC262: ₪ 21,696.60 | AD262: ₪ 55,055.58 | AE262: ₪ 1,774,631.97
S263: 8 | T263: ₪ 541,762.52 | U263: ₪ 49,251.14 | V263: ₪ 6,501.36 | W263: ₪ 55,752.50 | X263: ₪ 492,511.38 | Y263: 38 | Z263: 8 | AA263: ₪ 1,774,631.97 | AB263: ₪ 33,759.30 | AC263: ₪ 21,296.28 | AD263: ₪ 55,055.58 | AE263: ₪ 1,740,872.67
S264: 9 | T264: ₪ 492,511.38 | U264: ₪ 49,251.14 | V264: ₪ 5,910.33 | W264: ₪ 55,161.47 | X264: ₪ 443,260.24 | Y264: 39 | Z264: 9 | AA264: ₪ 1,740,872.67 | AB264: ₪ 34,164.42 | AC264: ₪ 20,891.16 | AD264: ₪ 55,055.58 | AE264: ₪ 1,706,708.25
S265: 10 | T265: ₪ 443,260.24 | U265: ₪ 49,251.14 | V265: ₪ 5,319.30 | W265: ₪ 54,570.43 | X265: ₪ 394,009.10 | Y265: 40 | Z265: 10 | AA265: ₪ 1,706,708.25 | AB265: ₪ 34,574.41 | AC265: ₪ 20,481.17 | AD265: ₪ 55,055.58 | AE265: ₪ 1,672,133.84
S266: 11 | T266: ₪ 394,009.10 | U266: ₪ 49,251.14 | V266: ₪ 4,728.26 | W266: ₪ 53,979.40 | X266: ₪ 344,757.97 | Y266: 41 | Z266: 11 | AA266: ₪ 1,672,133.84 | AB266: ₪ 34,989.32 | AC266: ₪ 20,066.26 | AD266: ₪ 55,055.58 | AE266: ₪ 1,637,144.52
S267: 12 | T267: ₪ 344,757.97 | U267: ₪ 49,251.14 | V267: ₪ 4,137.23 | W267: ₪ 53,388.37 | X267: ₪ 295,506.83 | Y267: 42 | Z267: 12 | AA267: ₪ 1,637,144.52 | AB267: ₪ 35,409.20 | AC267: ₪ 19,646.38 | AD267: ₪ 55,055.58 | AE267: ₪ 1,601,735.32
S268: 13 | T268: ₪ 295,506.83 | U268: ₪ 49,251.14 | V268: ₪ 3,546.20 | W268: ₪ 52,797.34 | X268: ₪ 246,255.69 | Y268: 43 | Z268: 13 | AA268: ₪ 1,601,735.32 | AB268: ₪ 35,834.13 | AC268: ₪ 19,221.45 | AD268: ₪ 55,055.58 | AE268: ₪ 1,565,901.19
S269: 14 | T269: ₪ 246,255.69 | U269: ₪ 49,251.14 | V269: ₪ 2,955.17 | W269: ₪ 52,206.30 | X269: ₪ 197,004.55 | Y269: 44 | Z269: 14 | AA269: ₪ 1,565,901.19 | AB269: ₪ 36,264.15 | AC269: ₪ 18,791.43 | AD269: ₪ 55,055.58 | AE269: ₪ 1,529,637.04
S270: 15 | T270: ₪ 197,004.55 | U270: ₪ 49,251.14 | V270: ₪ 2,364.13 | W270: ₪ 51,615.27 | X270: ₪ 147,753.41 | Y270: 45 | Z270: 15 | AA270: ₪ 1,529,637.04 | AB270: ₪ 36,699.33 | AC270: ₪ 18,356.25 | AD270: ₪ 55,055.58 | AE270: ₪ 1,492,937.71
S271: 16 | T271: =X270 -> ₪ 147,753.41 | U271: ₪ 49,251.14 | V271: ₪ 1,773.10 | W271: =V271+U271 -> ₪ 51,024.24 | X271: =T271-U271 -> ₪ 98,502.28 | Y271: 46 | Z271: 16 | AA271: ₪ 1,492,937.71 | AB271: ₪ 37,139.74 | AC271: ₪ 17,915.84 | AD271: ₪ 55,055.58 | AE271: ₪ 1,455,797.97
S272: 17 | T272: ₪ 98,502.28 | U272: ₪ 49,251.14 | V272: ₪ 1,182.07 | W272: ₪ 50,433.20 | X272: ₪ 49,251.14 | Y272: 47 | Z272: 17 | AA272: ₪ 1,455,797.97 | AB272: ₪ 37,585.43 | AC272: ₪ 17,470.15 | AD272: ₪ 55,055.58 | AE272: ₪ 1,418,212.54
S273: 18 | T273: ₪ 49,251.14 | U273: ₪ 49,251.14 | V273: ₪ 591.03 | W273: ₪ 49,842.17 | X273: ₪ -0.00 | Y273: 48 | Z273: 18 | AA273: ₪ 1,418,212.54 | AB273: ₪ 38,036.47 | AC273: ₪ 17,019.11 | AD273: ₪ 55,055.58 | AE273: ₪ 1,380,176.07
Y274: 19 | Z274: 19 | AA274: ₪ 1,380,176.07 | AB274: ₪ 38,492.92 | AC274: ₪ 16,562.66 | AD274: ₪ 55,055.58 | AE274: ₪ 1,341,683.14
Y275: 20 | Z275: 20 | AA275: ₪ 1,341,683.14 | AB275: ₪ 38,954.85 | AC275: ₪ 16,100.72 | AD275: ₪ 55,055.58 | AE275: ₪ 1,302,728.29
Y276: 21 | Z276: 21 | AA276: ₪ 1,302,728.29 | AB276: ₪ 39,422.33 | AC276: ₪ 15,633.25 | AD276: ₪ 55,055.58 | AE276: ₪ 1,263,305.96
Y277: 22 | Z277: 22 | AA277: ₪ 1,263,305.96 | AB277: ₪ 39,895.41 | AC277: ₪ 15,160.17 | AD277: ₪ 55,055.58 | AE277: ₪ 1,223,410.55
Y278: 23 | Z278: 23 | AA278: ₪ 1,223,410.55 | AB278: ₪ 40,374.17 | AC278: ₪ 14,681.41 | AD278: ₪ 55,055.58 | AE278: ₪ 1,183,036.38
Y279: 24 | Z279: 24 | AA279: ₪ 1,183,036.38 | AB279: ₪ 40,858.68 | AC279: ₪ 14,196.90 | AD279: ₪ 55,055.58 | AE279: ₪ 1,142,177.70
Y280: 25 | Z280: 25 | AA280: ₪ 1,142,177.70 | AB280: ₪ 41,349.00 | AC280: ₪ 13,706.58 | AD280: ₪ 55,055.58 | AE280: ₪ 1,100,828.70
Y281: 26 | Z281: 26 | AA281: ₪ 1,100,828.70 | AB281: ₪ 41,845.20 | AC281: ₪ 13,210.38 | AD281: ₪ 55,055.58 | AE281: ₪ 1,058,983.50
Y282: 27 | Z282: 27 | AA282: ₪ 1,058,983.50 | AB282: ₪ 42,347.36 | AC282: ₪ 12,708.22 | AD282: ₪ 55,055.58 | AE282: ₪ 1,016,636.14
Y283: 28 | Z283: 28 | AA283: ₪ 1,016,636.14 | AB283: ₪ 42,855.55 | AC283: ₪ 12,200.03 | AD283: ₪ 55,055.58 | AE283: ₪ 973,780.60
Y284: 29 | Z284: 29 | AA284: ₪ 973,780.60 | AB284: ₪ 43,369.83 | AC284: ₪ 11,685.75 | AD284: ₪ 55,055.58 | AE284: ₪ 930,410.77
Y285: 30 | Z285: 30 | AA285: ₪ 930,410.77 | AB285: ₪ 43,890.28 | AC285: ₪ 11,165.29 | AD285: ₪ 55,055.58 | AE285: ₪ 886,520.48
Y286: 31 | Z286: 31 | AA286: ₪ 886,520.48 | AB286: ₪ 44,416.98 | AC286: ₪ 10,638.59 | AD286: ₪ 55,055.58 | AE286: ₪ 842,103.50
Y287: 32 | Z287: 32 | AA287: ₪ 842,103.50 | AB287: ₪ 44,950.01 | AC287: ₪ 10,105.57 | AD287: ₪ 55,055.58 | AE287: ₪ 797,153.49
Y288: 33 | Z288: 33 | AA288: ₪ 797,153.49 | AB288: ₪ 45,489.42 | AC288: ₪ 9,566.16 | AD288: ₪ 55,055.58 | AE288: ₪ 751,664.07
Y289: 34 | Z289: 34 | AA289: ₪ 751,664.07 | AB289: ₪ 46,035.31 | AC289: ₪ 9,020.26 | AD289: ₪ 55,055.58 | AE289: ₪ 705,628.75
Y290: 35 | Z290: 35 | AA290: ₪ 705,628.75 | AB290: ₪ 46,587.76 | AC290: ₪ 8,467.82 | AD290: ₪ 55,055.58 | AE290: ₪ 659,041.00
Y291: 36 | Z291: 36 | AA291: ₪ 659,041.00 | AB291: ₪ 47,146.83 | AC291: ₪ 7,908.75 | AD291: ₪ 55,055.58 | AE291: ₪ 611,894.17
Y292: 37 | Z292: 37 | AA292: ₪ 611,894.17 | AB292: ₪ 47,712.61 | AC292: ₪ 7,342.97 | AD292: ₪ 55,055.58 | AE292: ₪ 564,181.56
Y293: 38 | Z293: 38 | AA293: ₪ 564,181.56 | AB293: ₪ 48,285.18 | AC293: ₪ 6,770.40 | AD293: ₪ 55,055.58 | AE293: ₪ 515,896.38
Y294: 39 | Z294: 39 | AA294: ₪ 515,896.38 | AB294: ₪ 48,864.62 | AC294: ₪ 6,190.96 | AD294: ₪ 55,055.58 | AE294: ₪ 467,031.76
Y295: 40 | Z295: 40 | AA295: ₪ 467,031.76 | AB295: ₪ 49,451.01 | AC295: ₪ 5,604.56 | AD295: ₪ 55,055.58 | AE295: ₪ 417,580.75
Y296: 41 | Z296: 41 | AA296: ₪ 417,580.75 | AB296: ₪ 50,044.45 | AC296: ₪ 5,011.13 | AD296: ₪ 55,055.58 | AE296: ₪ 367,536.30
Y297: 42 | Z297: 42 | AA297: ₪ 367,536.30 | AB297: ₪ 50,645.00 | AC297: ₪ 4,410.58 | AD297: ₪ 55,055.58 | AE297: ₪ 316,891.30
Y298: 43 | Z298: 43 | AA298: ₪ 316,891.30 | AB298: ₪ 51,252.76 | AC298: ₪ 3,802.82 | AD298: ₪ 55,055.58 | AE298: ₪ 265,638.54
Y299: 44 | Z299: 44 | AA299: ₪ 265,638.54 | AB299: ₪ 51,867.81 | AC299: ₪ 3,187.77 | AD299: ₪ 55,055.58 | AE299: ₪ 213,770.73
Y300: 45 | Z300: 45 | AA300: ₪ 213,770.73 | AB300: ₪ 52,490.25 | AC300: ₪ 2,565.33 | AD300: ₪ 55,055.58 | AE300: ₪ 161,280.49
Y301: 46 | Z301: 46 | AA301: ₪ 161,280.49 | AB301: ₪ 53,120.15 | AC301: ₪ 1,935.43 | AD301: ₪ 55,055.58 | AE301: ₪ 108,160.34
Y302: 47 | Z302: 47 | AA302: ₪ 108,160.34 | AB302: ₪ 53,757.61 | AC302: ₪ 1,297.97 | AD302: ₪ 55,055.58 | AE302: ₪ 54,402.72
Y303: 48 | Z303: 48 | AA303: ₪ 54,402.72 | AB303: ₪ 54,402.72 | AC303: ₪ 652.85 | AD303: ₪ 55,055.58 | AE303: ₪ 0.00
T307: רגיל | Z307: שפיצר
S308: נתונים: | Z308: נתונים:
S309: הלוואה | T309: 300,000 | U309: PV | Z309: הלוואה | AA309: 300,000 | AB309: PV
S310: מספר תקופות | T310: 60 | U310: n | Z310: חודשים | AA310: 60 | AB310: n
S311: ריבית | T311: 1.00% | U311: r | X311: Rשנתי | Z311: ריבית | AA311: 1.00% | AB311: r
T312: =T309/T310 -> 5000 | U312: קרן קבועה | AA312: =PMT(AA311,AA310,-AA309,,) -> ₪ 6,673.33 | AB312: PMT
S313: מספר תקבול | T313: יתרת הקרן בתחילת תקופה | U313: תשלום ע"ח קרן | V313: תשלום ע"ח ריבית | W313: סך הכל תשלום | X313: יתרת הקרן בסוף התקופה | Z313: מספר תקבול | AA313: יתרת הקרן בתחילת תקופה | AB313: תשלום ע"ח קרן | AC313: תשלום ע"ח ריבית | AD313: סך הכל תשלום | AE313: יתרת הקרן בסוף התקופה
S314: 1 | T314: =T309 -> ₪ 300,000.00 | U314: =T312 -> ₪ 5,000.00 | V314: =$T$311*T314 -> ₪ 3,000.00 | W314: =V314+U314 -> ₪ 8,000.00 | X314: =T314-U314 -> ₪ 295,000.00 | Z314: 1 | AA314: =AA309 -> ₪ 300,000.00 | AB314: =AD314-AC314 -> ₪ 3,673.33 | AC314: =$AA$311*AA314 -> ₪ 3,000.00 | AD314: =$AA$312 -> ₪ 6,673.33 | AE314: =AA314-AB314 -> ₪ 296,326.67
S315: 2 | T315: =X314 -> ₪ 295,000.00 | U315: =T312 -> ₪ 5,000.00 | V315: =$T$253*T315 -> ₪ 3,540.12 | W315: =V315+U315 -> ₪ 8,540.12 | X315: =T315-U315 -> ₪ 290,000.00 | Z315: 2 | AA315: =AE314 -> ₪ 296,326.67 | AB315: =AD315-AC315 -> ₪ 51,499.54 | AC315: =$AA$253*AA315 -> ₪ 3,556.04 | AD315: =$AA$254 -> ₪ 55,055.58 | AE315: =AA315-AB315 -> ₪ 244,827.12
AD317: =W314-AD314 -> ₪ 1,326.67
S321: נתונים:
S322: הלוואה | T322: 100,000 | U322: PV
S323: מספר תקופות | T323: =5*12 -> 60 | U323: n
S324: ריבית | T324: 1.00% | U324: r
S326: מספר תקבול | T326: יתרת הקרן בתחילת תקופה | U326: תשלום ע"ח קרן | V326: תשלום ע"ח ריבית | W326: סך הכל תשלום | X326: יתרת הקרן בסוף התקופה
S327: 1 | T327: =T322 -> ₪ 100,000.00 | U327: ₪ 0.00 | V327: =$T$324*T327 -> ₪ 1,000.00 | W327: =U327+V327 -> ₪ 1,000.00 | X327: =T327-U327 -> ₪ 100,000.00
S328: 2 | T328: =X327 -> ₪ 100,000.00 | U328: ₪ 0.00 | V328: =$T$324*T328 -> ₪ 1,000.00 | W328: =U328+V328 -> ₪ 1,000.00 | X328: =T328-U328 -> ₪ 100,000.00
S329: 3 | T329: =X328 -> ₪ 100,000.00 | U329: ₪ 0.00 | V329: ₪ 1,000.00 | W329: ₪ 1,000.00 | X329: ₪ 100,000.00
S330: 4 | T330: ₪ 100,000.00 | U330: ₪ 0.00 | V330: ₪ 1,000.00 | W330: ₪ 1,000.00 | X330: ₪ 100,000.00
S331: 5 | T331: ₪ 100,000.00 | U331: ₪ 0.00 | V331: ₪ 1,000.00 | W331: ₪ 1,000.00 | X331: ₪ 100,000.00
S332: 6 | T332: =X331 -> ₪ 100,000.00 | U332: ₪ 0.00 | V332: ₪ 1,000.00 | W332: ₪ 1,000.00 | X332: =T332-U332 -> ₪ 100,000.00
S333: 7 | T333: ₪ 100,000.00 | U333: ₪ 0.00 | V333: ₪ 1,000.00 | W333: ₪ 1,000.00 | X333: ₪ 100,000.00
S334: 8 | T334: ₪ 100,000.00 | U334: ₪ 0.00 | V334: ₪ 1,000.00 | W334: ₪ 1,000.00 | X334: ₪ 100,000.00
S335: 9 | T335: ₪ 100,000.00 | U335: ₪ 0.00 | V335: ₪ 1,000.00 | W335: ₪ 1,000.00 | X335: ₪ 100,000.00
S336: 10 | T336: ₪ 100,000.00 | U336: ₪ 0.00 | V336: ₪ 1,000.00 | W336: ₪ 1,000.00 | X336: ₪ 100,000.00
S337: 11 | T337: ₪ 100,000.00 | U337: ₪ 0.00 | V337: ₪ 1,000.00 | W337: ₪ 1,000.00 | X337: ₪ 100,000.00
S338: 12 | T338: ₪ 100,000.00 | U338: ₪ 0.00 | V338: ₪ 1,000.00 | W338: ₪ 1,000.00 | X338: ₪ 100,000.00
S339: 13 | T339: ₪ 100,000.00 | U339: ₪ 0.00 | V339: ₪ 1,000.00 | W339: ₪ 1,000.00 | X339: ₪ 100,000.00
S340: 14 | T340: ₪ 100,000.00 | U340: ₪ 0.00 | V340: ₪ 1,000.00 | W340: ₪ 1,000.00 | X340: ₪ 100,000.00
S341: 15 | T341: ₪ 100,000.00 | U341: ₪ 0.00 | V341: ₪ 1,000.00 | W341: ₪ 1,000.00 | X341: ₪ 100,000.00
S342: 16 | T342: ₪ 100,000.00 | U342: ₪ 0.00 | V342: ₪ 1,000.00 | W342: ₪ 1,000.00 | X342: ₪ 100,000.00
S343: 17 | T343: ₪ 100,000.00 | U343: ₪ 0.00 | V343: ₪ 1,000.00 | W343: ₪ 1,000.00 | X343: ₪ 100,000.00
S344: 18 | T344: ₪ 100,000.00 | U344: ₪ 0.00 | V344: ₪ 1,000.00 | W344: ₪ 1,000.00 | X344: ₪ 100,000.00
S345: 19 | T345: ₪ 100,000.00 | U345: ₪ 0.00 | V345: ₪ 1,000.00 | W345: ₪ 1,000.00 | X345: ₪ 100,000.00
S346: 20 | T346: ₪ 100,000.00 | U346: ₪ 0.00 | V346: ₪ 1,000.00 | W346: ₪ 1,000.00 | X346: ₪ 100,000.00
S347: 21 | T347: ₪ 100,000.00 | U347: ₪ 0.00 | V347: ₪ 1,000.00 | W347: ₪ 1,000.00 | X347: ₪ 100,000.00
S348: 22 | T348: ₪ 100,000.00 | U348: ₪ 0.00 | V348: ₪ 1,000.00 | W348: ₪ 1,000.00 | X348: ₪ 100,000.00
S349: 23 | T349: ₪ 100,000.00 | U349: ₪ 0.00 | V349: ₪ 1,000.00 | W349: ₪ 1,000.00 | X349: ₪ 100,000.00
S350: 24 | T350: ₪ 100,000.00 | U350: ₪ 0.00 | V350: ₪ 1,000.00 | W350: ₪ 1,000.00 | X350: ₪ 100,000.00
S351: 25 | T351: ₪ 100,000.00 | U351: ₪ 0.00 | V351: ₪ 1,000.00 | W351: ₪ 1,000.00 | X351: ₪ 100,000.00
S352: 26 | T352: ₪ 100,000.00 | U352: ₪ 0.00 | V352: ₪ 1,000.00 | W352: ₪ 1,000.00 | X352: ₪ 100,000.00
S353: 27 | T353: ₪ 100,000.00 | U353: ₪ 0.00 | V353: ₪ 1,000.00 | W353: ₪ 1,000.00 | X353: ₪ 100,000.00
S354: 28 | T354: ₪ 100,000.00 | U354: ₪ 0.00 | V354: ₪ 1,000.00 | W354: ₪ 1,000.00 | X354: ₪ 100,000.00
S355: 29 | T355: ₪ 100,000.00 | U355: ₪ 0.00 | V355: ₪ 1,000.00 | W355: ₪ 1,000.00 | X355: ₪ 100,000.00
S356: 30 | T356: ₪ 100,000.00 | U356: ₪ 0.00 | V356: ₪ 1,000.00 | W356: ₪ 1,000.00 | X356: ₪ 100,000.00
S357: 31 | T357: ₪ 100,000.00 | U357: ₪ 0.00 | V357: ₪ 1,000.00 | W357: ₪ 1,000.00 | X357: ₪ 100,000.00
S358: 32 | T358: ₪ 100,000.00 | U358: ₪ 0.00 | V358: ₪ 1,000.00 | W358: ₪ 1,000.00 | X358: ₪ 100,000.00
S359: 33 | T359: ₪ 100,000.00 | U359: ₪ 0.00 | V359: ₪ 1,000.00 | W359: ₪ 1,000.00 | X359: ₪ 100,000.00
I360: ערך נקוב | J360: 1,000 | S360: 34 | T360: ₪ 100,000.00 | U360: ₪ 0.00 | V360: ₪ 1,000.00 | W360: ₪ 1,000.00 | X360: ₪ 100,000.00
I361: מרווח בין קופונים | J361: 2 | S361: 35 | T361: ₪ 100,000.00 | U361: ₪ 0.00 | V361: ₪ 1,000.00 | W361: ₪ 1,000.00 | X361: ₪ 100,000.00
I362: מספר קופונים | J362: =7*2 -> 14 | S362: 36 | T362: ₪ 100,000.00 | U362: ₪ 0.00 | V362: ₪ 1,000.00 | W362: ₪ 1,000.00 | X362: ₪ 100,000.00
I363: מחיר בהנפקה | J363: 945.39 | S363: 37 | T363: ₪ 100,000.00 | U363: ₪ 0.00 | V363: ₪ 1,000.00 | W363: ₪ 1,000.00 | X363: ₪ 100,000.00
I364: תשואה שנתית לפדיון | J364: 7.12% | S364: 38 | T364: ₪ 100,000.00 | U364: ₪ 0.00 | V364: ₪ 1,000.00 | W364: ₪ 1,000.00 | X364: ₪ 100,000.00
I365: תשואה חצי שנתית לפדיון | J365: =(1+J364)^(1/2)-1 -> 3.50% | S365: 39 | T365: ₪ 100,000.00 | U365: ₪ 0.00 | V365: ₪ 1,000.00 | W365: ₪ 1,000.00 | X365: ₪ 100,000.00
S366: 40 | T366: ₪ 100,000.00 | U366: ₪ 0.00 | V366: ₪ 1,000.00 | W366: ₪ 1,000.00 | X366: ₪ 100,000.00
I367: נחשב את גובה הקופון | J367: =PMT(J365,J362,-J363,J360) -> 30 | S367: 41 | T367: ₪ 100,000.00 | U367: ₪ 0.00 | V367: ₪ 1,000.00 | W367: ₪ 1,000.00 | X367: ₪ 100,000.00
I368: נחשב את הריבית הנקובה על האג"ח | J368: =J367/J360 -> 3.00% | S368: 42 | T368: ₪ 100,000.00 | U368: ₪ 0.00 | V368: ₪ 1,000.00 | W368: ₪ 1,000.00 | X368: ₪ 100,000.00
J369: =2*J368 -> 6.00% | S369: 43 | T369: ₪ 100,000.00 | U369: ₪ 0.00 | V369: ₪ 1,000.00 | W369: ₪ 1,000.00 | X369: ₪ 100,000.00
S370: 44 | T370: ₪ 100,000.00 | U370: ₪ 0.00 | V370: ₪ 1,000.00 | W370: ₪ 1,000.00 | X370: ₪ 100,000.00
S371: 45 | T371: ₪ 100,000.00 | U371: ₪ 0.00 | V371: ₪ 1,000.00 | W371: ₪ 1,000.00 | X371: ₪ 100,000.00
S372: 46 | T372: ₪ 100,000.00 | U372: ₪ 0.00 | V372: ₪ 1,000.00 | W372: ₪ 1,000.00 | X372: ₪ 100,000.00
S373: 47 | T373: ₪ 100,000.00 | U373: ₪ 0.00 | V373: ₪ 1,000.00 | W373: ₪ 1,000.00 | X373: ₪ 100,000.00
S374: 48 | T374: ₪ 100,000.00 | U374: ₪ 0.00 | V374: ₪ 1,000.00 | W374: ₪ 1,000.00 | X374: ₪ 100,000.00
S375: 49 | T375: ₪ 100,000.00 | U375: ₪ 0.00 | V375: ₪ 1,000.00 | W375: ₪ 1,000.00 | X375: ₪ 100,000.00
S376: 50 | T376: ₪ 100,000.00 | U376: ₪ 0.00 | V376: ₪ 1,000.00 | W376: ₪ 1,000.00 | X376: ₪ 100,000.00
S377: 51 | T377: ₪ 100,000.00 | U377: ₪ 0.00 | V377: ₪ 1,000.00 | W377: ₪ 1,000.00 | X377: ₪ 100,000.00
S378: 52 | T378: ₪ 100,000.00 | U378: ₪ 0.00 | V378: ₪ 1,000.00 | W378: ₪ 1,000.00 | X378: ₪ 100,000.00
S379: 53 | T379: ₪ 100,000.00 | U379: ₪ 0.00 | V379: ₪ 1,000.00 | W379: ₪ 1,000.00 | X379: ₪ 100,000.00
S380: 54 | T380: ₪ 100,000.00 | U380: ₪ 0.00 | V380: ₪ 1,000.00 | W380: ₪ 1,000.00 | X380: ₪ 100,000.00
S381: 55 | T381: ₪ 100,000.00 | U381: ₪ 0.00 | V381: ₪ 1,000.00 | W381: ₪ 1,000.00 | X381: ₪ 100,000.00
S382: 56 | T382: =X381 -> ₪ 100,000.00 | U382: ₪ 0.00 | V382: ₪ 1,000.00 | W382: ₪ 1,000.00 | X382: =T382-U382 -> ₪ 100,000.00
S383: 57 | T383: ₪ 100,000.00 | U383: ₪ 0.00 | V383: ₪ 1,000.00 | W383: ₪ 1,000.00 | X383: ₪ 100,000.00
S384: 58 | T384: ₪ 100,000.00 | U384: ₪ 0.00 | V384: ₪ 1,000.00 | W384: ₪ 1,000.00 | X384: ₪ 100,000.00
S385: 59 | T385: ₪ 100,000.00 | U385: ₪ 0.00 | V385: ₪ 1,000.00 | W385: ₪ 1,000.00 | X385: ₪ 100,000.00
S386: 60 | T386: ₪ 100,000.00 | U386: =T386 -> ₪ 100,000.00 | V386: ₪ 1,000.00 | W386: ₪ 101,000.00 | X386: ₪ 0.00
V388: 190
V389: 100
W390: =W386*V388/V389 -> ₪ 191,900.00
I398: מגבלת תקציב | J398: 120,000
I400: הפרוייקטים | J400: השקעה | K400: NPV | L400: PI
I401: A | J401: 50,000 | K401: 18,661 | L401: 0.37
I402: B | J402: 6,000 | K402: =L411 -> 2,582 | L402: 0.43
I403: C | J403: 30,000 | K403: 4,170 | L403: 0.14
I404: D | J404: 14,000 | K404: =L414 -> 3,165 | L404: 0.22
I405: E | J405: 40,000 | K405: 4,718 | L405: 0.12
I406: F | J406: 30,000 | K406: =L413 -> 7,053 | L406: 0.23
I410: הפרוייקטים הנבחרים לפי סדר יורד של PI | J410: השקעה | K410: PI | L410: ענ"נ | M410: יתרת תקציב
I411: B | J411: 6,000 | K411: 0.43 | L411: 2,582 | M411: =J398-J411 -> 114,000
I412: A | J412: 50,000 | K412: 0.37 | L412: =K401 -> 18,661 | M412: =M411-J412 -> 64,000
I413: F | J413: 30,000 | K413: 0.23 | L413: 7,053 | M413: =M412-J413 -> 34,000
I414: D | J414: 14,000 | K414: 0.22 | L414: 3,165 | M414: 20,000
I415: C | J415: 20,000 | K415: 0.14 | L415: =J415/J403*K403 -> 2,780 | M415: 0
... 66 more rows

Sheet פתרון שאלה פתוחה
O13: פרויקט א' לאחר התיקון
R14: 10%
O15: -26.5 | P15: השקעה
O16: 4 | P16: תקבול 1
O17: 4 | P17: תקבול 2
O18: 4 | P18: תקבול 3
O19: 4 | P19: תקבול 4
O20: 4 | P20: תקבול 5
O21: 4 | P21: תקבול 6
O22: 4 | P22: תקבול 7
O23: 4 | P23: תקבול 8
O24: 3 | P24: תקבול 9
O25: 3 | P25: תקבול 10
O26: 3 | P26: תקבול 11
O27: 2.5 | P27: תקבול 12
O28: =NPV(R14,O16:O27)-26.5 -> -0.8833137423 | P28: NPV
O29: =IRR(O15:O27) -> 9.27% | P29: IRR
D43: שפיצר | H43: .ד | I43: =I52+1500000 -> ₪ 23,898,155.82
D44: נתונים:
D45: הלוואה | E45: 26,500,000 | F45: PV | H45: 10.00%
D46: חודשים | E46: 12 | F46: n
D47: ריבית | E47: =H45 -> 10.00% | F47: r
E48: =PMT(E47,E46,-E45,,) -> ₪ 3,889,227.85 | F48: PMT
D49: מספר תקבול | E49: יתרת הקרן בתחילת תקופה | F49: תשלום ע"ח קרן | G49: תשלום ע"ח ריבית | H49: סך הכל תשלום | I49: יתרת הקרן בסוף התקופה
D50: 1 | E50: =E45 -> ₪ 26,500,000.00 | F50: =H50-G50 -> ₪ 1,239,227.85 | G50: =$E$47*E50 -> ₪ 2,650,000.00 | H50: =$E$48 -> ₪ 3,889,227.85 | I50: =E50-F50 -> ₪ 25,260,772.15
D51: 2 | E51: =I50 -> ₪ 25,260,772.15 | F51: =H51-G51 -> ₪ 1,363,150.64 | G51: =$E$47*E51 -> ₪ 2,526,077.21 | H51: =$E$48 -> ₪ 3,889,227.85 | I51: =E51-F51 -> ₪ 23,897,621.51
D52: 3 | E52: =I51 -> ₪ 23,897,621.51 | F52: ₪ 1,499,465.70 | G52: ₪ 2,389,762.15 | H52: ₪ 3,889,227.85 | I52: ₪ 22,398,155.82
D53: 4 | E53: ₪ 22,398,155.82 | F53: ₪ 1,649,412.27 | G53: ₪ 2,239,815.58 | H53: ₪ 3,889,227.85 | I53: ₪ 20,748,743.55
D54: 5 | E54: ₪ 20,748,743.55 | F54: ₪ 1,814,353.50 | G54: ₪ 2,074,874.35 | H54: ₪ 3,889,227.85 | I54: ₪ 18,934,390.05
D55: 6 | E55: ₪ 18,934,390.05 | F55: ₪ 1,995,788.84 | G55: ₪ 1,893,439.01 | H55: ₪ 3,889,227.85 | I55: ₪ 16,938,601.21
D56: 7 | E56: ₪ 16,938,601.21 | F56: ₪ 2,195,367.73 | G56: ₪ 1,693,860.12 | H56: ₪ 3,889,227.85 | I56: ₪ 14,743,233.48
D57: 8 | E57: ₪ 14,743,233.48 | F57: ₪ 2,414,904.50 | G57: ₪ 1,474,323.35 | H57: ₪ 3,889,227.85 | I57: ₪ 12,328,328.98
D58: 9 | E58: ₪ 12,328,328.98 | F58: ₪ 2,656,394.95 | G58: ₪ 1,232,832.90 | H58: ₪ 3,889,227.85 | I58: ₪ 9,671,934.02
D59: 10 | E59: ₪ 9,671,934.02 | F59: ₪ 2,922,034.45 | G59: ₪ 967,193.40 | H59: ₪ 3,889,227.85 | I59: ₪ 6,749,899.57
D60: 11 | E60: =I59 -> ₪ 6,749,899.57 | F60: =H60-G60 -> ₪ 3,214,237.89 | G60: ₪ 674,989.96 | H60: ₪ 3,889,227.85 | I60: =E60-F60 -> ₪ 3,535,661.68
D61: 12 | E61: ₪ 3,535,661.68 | F61: ₪ 3,535,661.68 | G61: ₪ 353,566.17 | H61: ₪ 3,889,227.85 | I61: ₪ -0.00
